Cogmind - Beta 14 *** ADVENTURER MODE // 2024.11.20 @ 21:30:53 Player: fwankie Result: Destroyed by G-47 Trooper with Particle Gun Performance ------------- Evolutions (1) 500 Regions Visited (4) 800 Robots Destroyed (67) 335 Value Destroyed (1867) 1867 Prototype IDs (0) 0 Alien Tech Used (0) 0 Bonus (25) 25 TOTAL SCORE: 3527 Bonus ------- Follower Combat Kills 25 Cogmind --------- Core Integrity 0/400 Matter 8/300 Energy 275/275 System Corruption 2% Temperature Cool (9) Movement Treading (320) Ox2 Location -9/Mines Parts ------- > --- POWER (1) -------- Deuterium Engine > --- PROPULSION (4) --- Light Treads Light Treads > --- UTILITY (2) ------ Huge Storage Unit Structural Scanner > --- WEAPON (2) ------- Assault Cannon Assault Cannon > --- INVENTORY (25) --- Deuterium Engine Deuterium Engine Cooling System Weight Redist. System Sensor Array Improved Terrain Scanner Seismic Detector Advanced Targeting Computer Advanced Targeting Computer Advanced Targeting Computer Advanced Targeting Computer Hardened Light Armor Plating Hardened Light Armor Plating Shield Generator Rocket Launcher Datajack Mining Laser Mining Laser Peak State ------------ > --- POWER ------------ Deuterium Engine > --- PROPULSION ------- Light Treads Light Treads Light Treads Improved Treads > --- UTILITY ---------- Huge Storage Unit Signal Interpreter > --- WEAPON ----------- Assault Cannon Assault Cannon > --- INVENTORY -------- Deuterium Engine Deuterium Engine Deuterium Engine Light Treads Cooling System Structural Scanner Sensor Array Improved Terrain Scanner Improved Terrain Scanner Seismic Detector Advanced Targeting Computer Advanced Targeting Computer Advanced Targeting Computer Advanced Targeting Computer Hardened Light Armor Plating Hardened Light Armor Plating Shield Generator Assault Rifle Assault Cannon Assault Cannon Grenade Launcher Rocket Launcher Datajack Mining Laser Mining Laser [Rating: 21] Favorites ----------- Power Ion Engine Engine Ion Engine Propulsion Light Treads Treads Light Treads Utility Signal Interpreter Device Sensor Array Storage Huge Storage Unit Processor Signal Interpreter Weapon EM Shotgun Energy Gun EM Shotgun Energy Cannon Light EM Pulse Cannon Ballistic Gun Assault Rifle Ballistic Cannon Assault Cannon Launcher Grenade Launcher Build | -11 -10 -10 -9 -9 ------- Run | Yrd Mat Min Mat Min Slots Evolved 2 | . . . 2 . Power . | . . . . . Propulsion 2 | . . . 2 . Utility . | . . . . . Weapon . | . . . . . Parts Attached 35 | 6 7 1 14 7 Power 5 | 1 . . 3 1 Engine 5 | 1 . . 3 1 Core . | . . . . . Reactor . | . . . . . Propulsion 9 | 2 . . 5 2 Treads 9 | 2 . . 5 2 Leg . | . . . . . Wheel . | . . . . . Hover . | . . . . . Flight . | . . . . . Utility 6 | 1 3 1 . 1 Device 2 | . 1 . . 1 Storage 3 | 1 1 1 . . Processor 1 | . 1 . . . Hackware . | . . . . . Protection . | . . . . . Artifact . | . . . . . Weapon 15 | 2 4 . 6 3 Energy Gun 6 | . 3 . 3 . Energy Cannon 1 | . . . 1 . Ballistic Gun 2 | 2 . . . . Ballistic Cannon 4 | . . . 2 2 Launcher 2 | . 1 . . 1 Special Weapon . | . . . . . Impact Weapon . | . . . . . Slashing Weapon . | . . . . . Piercing Weapon . | . . . . . Special Melee Weapon . | . . . . . Unidentified Prototypes . | . . . . . Parts Lost 14 | . . . 5 9 Power 2 | . . . 1 1 Propulsion 6 | . . . 2 4 Utility 1 | . . . . 1 Weapon 5 | . . . 2 3 Highest Loss Streak 8 | . . . 2 8 To Critical Strikes . | . . . . . Average Slot Usage (%) 97 | . 94 100 99 77 Engine 12 | . 14 14 10 11 Treads 36 | . 28 28 43 25 Device 1 | . 4 . . 7 Storage 12 | . 14 14 11 11 Processor 9 | . 4 14 11 1 Energy Gun 13 | . 24 28 5 . Energy Cannon 1 | . . . 2 . Ballistic Cannon 8 | . . . 14 20 Peak Build Rating 21 | 6 9 10 21 21 Average Rating 13 | 3 8 9 17 16 On Entrance 9 | . 6 9 10 21 Naked Turns . | . . . . . Heaviest Build 100 | 13 22 91 99 100 Greatest Support 83 | 40 40 40 83 83 Greatest Overweight (x) 4 | . . 2 1 4 Average Overweight (x) . | . . . 1 1 Largest Inventory Capacity 25 | 8 10 25 25 25 Average Capacity 19 | 6 9 15 25 25 Most Carried 25 | 4 8 15 25 25 Average Carried 15 | 1 5 11 20 19 Final Capacity 25 | 8 10 25 25 25 Final Carried 25 | 1 8 15 25 18 Class Distribution -------------------- 100% | Mutant Dominant Class ---------------- Mutant | -10/Materials Mutant | -10/Mines Mutant | -9/Materials Mutant | -9/Mines Resources | -11 -10 -10 -9 -9 ----------- Run | Yrd Mat Min Mat Min Matter Collected 856 | 156 214 10 423 53 Remotely . | . . . . . Salvage Created 1987 | . 349 435 1086 117 Parts 146 | . 36 24 86 . Haulers Intercepted . | . . . . . Recyclers Shooed 1 | . 1 . . . Parts Field Recycled . | . . . . . Retrieved Matter . | . . . . . Parts Self-Destructed . | . . . . . Prevented . | . . . . . Kills | -11 -10 -10 -9 -9 ------- Run | Yrd Mat Min Mat Min Combat Hostiles Destroyed 77 | . 12 13 30 22 Guns 25 | . 6 13 6 . Cannons 35 | . . . 22 13 AOE 16 | . 6 . 1 9 Classes Destroyed 10 | . 4 2 3 1 Worker 1 | . . . 1 . Builder 2 | . . . 2 . Tunneler 1 | . 1 . . . Watcher 7 | . 3 . 4 . Swarmer 18 | . 6 6 6 . Grunt 23 | . 6 4 13 . Duelist 1 | . . . 1 . Sentry 12 | . . 2 10 . Demolisher 2 | . . . . 2 Assembled 21 | . . 1 . 20 Best Kill Streak 20 | . 6 3 4 20 Combat Bots Only 20 | . 4 3 4 20 Max Kills in Single Turn 5 | . 2 2 2 5 Gunslinging 1 | . 1 1 . . Exploded 5 | . 2 . 1 5 Melee . | . . . . . Uniques/NPCs Destroyed . | . . . . . Combat | -11 -10 -10 -9 -9 -------- Run | Yrd Mat Min Mat Min Hostile Shots Fired 258 | . 25 41 101 91 Missed 67 | . 4 18 30 15 Damage Taken 2256 | . 209 198 778 1071 Core 439 | . 9 23 98 309 Absorbed by Shields . | . . . . . Ignored by Resistances 661 | . 65 63 224 309 Regen/Repaired (Parts) 39 | . 39 . . . Core Remaining (%) 93 | 100 . 87 . . Volleys Fired 126 | . 20 19 70 17 Largest 2 | . 2 2 2 2 Hottest 96 | . 90 90 96 88 Shots Fired 247 | . 36 38 141 32 Gun 106 | . 32 38 36 . Cannon 135 | . . . 105 30 Launcher 6 | . 4 . . 2 Special . | . . . . . Kinetic 113 | . . . 83 30 Thermal . | . . . . . Explosive 6 | . 4 . . 2 Electromagnetic 128 | . 32 38 58 . Robot Hit Streak 30 | . 13 30 16 9 Robot Miss Streak 3 | . 2 3 1 3 Penetration Max . | . . . . . Secondary Targets 2 | . 1 1 . . Max Gunslinging Chain 1 | . 1 1 . . Shots Hit Robots 177 | . 27 31 103 16 Core Hits 116 | . 22 24 43 27 Critical Kills . | . . . . . Critical Parts Destroyed . | . . . . . Critical Strikes 5 | . . . 5 . Blast 5 | . . . 5 . Melee Attacks . | . . . . . Impact . | . . . . . Slashing . | . . . . . Piercing . | . . . . . Sneak Attacks . | . . . . . Combat Hostiles . | . . . . . Follow-up Attacks . | . . . . . Damage Inflicted 4460 | . 826 408 2270 956 Guns 1227 | . 387 408 432 . Cannons 2239 | . . . 1717 522 Explosions 994 | . 439 . 121 434 Melee . | . . . . . Ramming . | . . . . . Kinetic 1865 | . . . 1343 522 Thermal 225 | . 104 . 121 . Explosive 769 | . 335 . . 434 Electromagnetic 1601 | . 387 408 806 . Impact . | . . . . . Slashing . | . . . . . Piercing . | . . . . . Highest Corruption 2 | . . . 2 2 Average Corruption 1 | . . . 1 2 Corruption Purged . | . . . . . Corruption Blocked . | . . . . . Effects 12 | . . . 9 3 Message Errors 3 | . . . 2 1 Matter Fused 1 | . . . 1 . Heat Flow Errors 3 | . . . 2 1 Energy Discharges 1 | . . . 1 . Data Loss (minor) 2 | . . . 2 . Data Loss (major) 1 | . . . . 1 Misfires 1 | . . . 1 . Overload Shots . | . . . . . Overflow Damage 115 | . 14 . 55 46 Projectiles 57 | . . . 42 15 Explosions 58 | . 14 . 13 31 Melee . | . . . . . Knockbacks 17 | . . . 6 11 Impact . | . . . . . Kinetic 14 | . . . 6 8 Secondary 3 | . . . . 3 Self-Inflicted Damage 157 | . 43 . 66 48 Shots 7 | . 3 . 2 2 Rammed . | . . . . . Targets Rammed . | . . . . . Kicked . | . . . . . Crushed . | . . . . . Highest Temperature 510 | . 138 180 126 510 Average Temperature 70 | . 48 59 41 197 Received Heat Transfer 883 | . 81 42 342 418 Effects 6 | . . . . 6 Shutdowns 2 | . . . . 2 Energy Bleed 1 | . . . . 1 Matter Decay 2 | . . . . 2 Short Circuit 1 | . . . . 1 Siege Activations . | . . . . . Robots Corrupted 1 | . . . 1 . Combat Hostiles 1 | . . . 1 . Parts Fried 10 | . 2 2 6 . Impact Corruptions . | . . . . . Robots Melted . | . . . . . Combat Hostiles . | . . . . . Parts Melted 1 | . . 1 . . Heat Transferred 350 | . 200 . 150 . Parts Sabotaged . | . . . . . Parts Stolen . | . . . . . Parts Stripped . | . . . . . Power Chain Reactions 6 | . 3 1 2 . Alert | -11 -10 -10 -9 -9 ------- Run | Yrd Mat Min Mat Min Peak Influence 313 | . 313 140 271 41 Initial 15 | . . . 15 6 Average 70 | . 110 42 67 26 Maximum Alert Level 1 | . 1 . 1 . Low Security (%) 95 | 100 81 100 98 100 Level 1 4 | . 19 . 1 . Level 2 . | . . . . . Level 3 . | . . . . . Level 4 . | . . . . . Level 5 . | . . . . . High Security . | . . . . . Max Security . | . . . . . Squads Dispatched 5 | . 2 . 3 . Investigation 2 | . 2 . . . Extermination . | . . . . . Reinforcement 3 | . . . 3 . Assault . | . . . . . Garrison . | . . . . . Intercept . | . . . . . Searches Triggered . | . . . . . Construction Impeded . | . . . . . Haulers Reinforced . | . . . . . Active Scanning Responses . | . . . . . Cargo Convoy Interrupts . | . . . . . Stealth | -11 -10 -10 -9 -9 --------- Run | Yrd Mat Min Mat Min Distress Signals 4 | . . . 4 . Communications Jammed . | . . . . . Distress Signals . | . . . . . Times Spotted 99 | . 15 15 45 24 Peak Tracking Total 15 | . 6 3 6 15 Tactical Retreats 5 | . 1 1 3 . Traps | -11 -10 -10 -9 -9 ------- Run | Yrd Mat Min Mat Min Traps Triggered 2 | . . . 2 . Indirectly . | . . . . . Trap Hack Attempts . | . . . . . Triggered . | . . . . . Disarmed . | . . . . . Reprogrammed 6 | . . . 6 . Reused . | . . . . . Traps Extracted . | . . . . . Installed . | . . . . . Triggered 2 | . 2 . . . Machines | -11 -10 -10 -9 -9 ---------- Run | Yrd Mat Min Mat Min Machines Disabled 5 | . 2 1 2 . Max in Single Turn 1 | . 1 1 1 . Machines Repaired . | . . . . . Machines Dismantled . | . . . . . Machines Sabotaged . | . . . . . Overloaded Fab Kills . | . . . . . Hacking | -11 -10 -10 -9 -9 --------- Run | Yrd Mat Min Mat Min Machines Accessed 17 | . 9 . 8 . Terminals 11 | . 6 . 5 . Fabricators . | . . . . . Repair Stations 1 | . 1 . . . Recycling Units 3 | . 2 . 1 . Scanalyzers 2 | . . . 2 . Garrison Access . | . . . . . Total Hacks 54 | . 18 . 36 . Successful 41 | . 10 . 31 . Failed 13 | . 8 . 5 . Catastrophic . | . . . . . Database Lockouts . | . . . . . Manual . | . . . . . Terminals 26 | . 12 . 14 . Fabricators . | . . . . . Repair Stations 4 | . 4 . . . Recycling Units 6 | . 2 . 4 . Scanalyzers 18 | . . . 18 . Garrison Access . | . . . . . Terminal Hacks 16 | . 6 . 10 . Emergency Access Points 1 | . . . 1 . Recycling Unit Index 1 | . . . 1 . Alert Level 3 | . . . 3 . Unreport Threat 1 | . . . 1 . Locate Traps 3 | . 1 . 2 . Reprogram Traps 1 | . . . 1 . Maintenance Status 1 | . . . 1 . Surveillance Status 1 | . 1 . . . Transport Status 1 | . 1 . . . Investigation Status 1 | . 1 . . . Hauler Manifests 1 | . 1 . . . Zone Layout 1 | . 1 . . . Fabricator Hacks . | . . . . . Repair Station Hacks 2 | . 2 . . . Scan Component 1 | . 1 . . . Repair 1 | . 1 . . . Recycling Unit Hacks 5 | . 2 . 3 . Process 1 | . . . 1 . Report Inventory 3 | . 2 . 1 . Retrieve Matter 1 | . . . 1 . Scanalyzer 18 | . . . 18 . Insert Component 9 | . . . 9 . Analyze 9 | . . . 9 . Garrison Access Hacks . | . . . . . Unauthorized Hacks . | . . . . . Terminals . | . . . . . Fabricators . | . . . . . Repair Stations . | . . . . . Recycling Units . | . . . . . Scanalyzers . | . . . . . Garrison Access . | . . . . . Data Cores Recovered . | . . . . . Used . | . . . . . Hacking Detections 14 | . 8 . 6 . Full Trace Events 1 | . 1 . . . Feedback Events . | . . . . . Feedback Blocked . | . . . . . Robot Schematics Acquired . | . . . . . Robots Built . | . . . . . Authchips . | . . . . . Time . | . . . . . Total Robot Build Rating . | . . . . . Part Schematics Acquired 9 | . . . 9 . Parts Built . | . . . . . Authchips . | . . . . . Time . | . . . . . Total Part Build Rating . | . . . . . Parts Repaired 1 | . 1 . . . Time 32 | . 32 . . . Parts Recycled . | . . . . . Recycled Matter 184 | . . . 184 . Retrieved Matter 399 | . . . 399 . Retrieved Components . | . . . . . Parts Scanalyzed 9 | . . . 9 . Part Schematics Acquired 9 | . . . 9 . Parts Damaged . | . . . . . Bothacking | -11 -10 -10 -9 -9 ------------ Run | Yrd Mat Min Mat Min Used RIF Installer . | . . . . . Robots Hacked . | . . . . . Non-combat . | . . . . . Combat . | . . . . . Robot Hacks Applied . | . . . . . Relay Couplers Released . | . . . . . Fabnet Peak Effective % . | . . . . . Robots Rewired . | . . . . . Allies Hacked . | . . . . . Hacks Repelled . | . . . . . Allies | -11 -10 -10 -9 -9 -------- Run | Yrd Mat Min Mat Min Total Allies 3 | . . 3 . . Largest Group 3 | . . 3 . . Highest-Rated Group 40 | . . 40 . . Highest-Rated Ally 16 | . . 16 . . Total Orders . | . . . . . Ally Attacks 20 | . . 20 . . Total Damage 211 | . . 211 . . Kills 2 | . . 2 . . Allies Corrupted . | . . . . . Allies Melted . | . . . . . Intel | -11 -10 -10 -9 -9 ------- Run | Yrd Mat Min Mat Min Robot Analysis Total . | . . . . . Derelict Logs Recovered 1 | . . 1 . . Drone Launches . | . . . . . Drone Recoveries . | . . . . . Exploration | -11 -10 -10 -9 -9 ------------- Run | Yrd Mat Min Mat Min Turns Passed 5700 | 54 1300 1058 3003 285 Spaces Moved 2428 | 32 718 488 1116 74 Core 8 | 8 . . . . Treads 2420 | 24 718 488 1116 74 Legs . | . . . . . Wheels . | . . . . . Hover . | . . . . . Flight . | . . . . . Fastest Speed 50 | 50 160 160 240 240 Average Speed 208 | 132 160 197 240 303 Slowest Speed 480 | 160 160 320 240 480 Overloaded Moves . | . . . . . Propulsion Burnouts . | . . . . . Robots Hopped . | . . . . . Cave-ins Triggered . | . . . . . Exploration Rate (%) 58 | 4 96 95 83 12 Regions Visited 4 Branch Regions 2 Pre-discovered Areas . | . . . . . Known Exits Taken 3 | . 1 1 1 . Unknown Exits Taken 1 | 1 . . . . Scrap Searched 1 | . . 1 . . Spaces Dug 5 | . . . 5 . Terrain Destroyed 70 | . 27 6 19 18 Melee . | . . . . . Projectile 15 | . . . 10 5 AOE 55 | . 27 6 9 13 Terrain Rammed . | . . . . . Walls Destroyed . | . . . . . Machines Disabled . | . . . . . Actions | -11 -10 -10 -9 -9 --------- Run | Yrd Mat Min Mat Min Total 2831 | 44 831 548 1305 103 Wait 178 | . 76 34 63 5 Move 2424 | 31 717 487 1115 74 Hop . | . . . . . Pick Up 54 | 7 10 7 30 . Fast Attach . | . . . . . Attach 23 | 6 2 . 8 7 Detach . | . . . . . Swap 12 | . 5 1 6 . Drop 14 | . 1 . 13 . Fire 126 | . 20 19 70 17 Melee . | . . . . . Ram . | . . . . . Kick . | . . . . . Crush . | . . . . . Escape Stasis . | . . . . . Rewire . | . . . . . Trap . | . . . . . Miscellaneous . | . . . . . Route ------- -11/Scrapyard -10/Materials (discovered 4 exits: *Mat x3 / *Min) -10/Mines (discovered 2 exits: *Mat x2) -9/Materials (discovered 5 exits: *Mat x2 / *Min / *Sto x2) -9/Mines History --------- Turn | Location | Event 32 | -11/Scrapyard | Discovered new exit (range 14) 55 | -11/Scrapyard | Entered Materials 130 | -10/Materials | Discovered new exit (range 8) 172 | -10/Materials | Discovered new exit (range 15) 269 | -10/Materials | Discovered new exit (range 8) 317 | -10/Materials | Build established: Mutant 455 | -10/Materials | Repaired EM Shotgun 963 | -10/Materials | Discovered new exit (range 9) 975 | -10/Materials | Identified exit to Materials 1353 | -10/Materials | Identified exit to Mines 1355 | -10/Materials | Entered Mines 1392 | -10/Mines | Discovered exit to Materials (range 6) 1399 | -10/Mines | Received a Rocket Launcher from a helpful Derelict 1781 | -10/Mines | Discovered exit to Materials (range 10) 1886 | -10/Mines | Assisted by bots powering up and referring to "LRC-V3" 1978 | -10/Mines | Excavation squad dispatched 1978 | -10/Mines | A large section of the Mines collapsed 2413 | -10/Mines | Entered Materials 2413 | -9/Materials | Evolved 2 slots: Propulsion x2 2414 | -9/Materials | Identified exit to Mines 3641 | -9/Materials | Discovered new exit (range 12) 3727 | -9/Materials | Identified exit to Storage 3817 | -9/Materials | Discovered new exit (range 16) 3871 | -9/Materials | Identified exit to Materials 4304 | -9/Materials | Discovered exit to Storage (range 11) 4879 | -9/Materials | Discovered exit to Materials (range 15) 5416 | -9/Materials | Entered Mines 5417 | -9/Mines | Assembled infested the area 5460 | -9/Mines | Core integrity fell below 50% 5504 | -9/Mines | Destroyed 20 combat bots 5511 | -9/Mines | Lost 8 parts (1p3n1u3w) 5518 | -9/Mines | Core integrity fell below 20% 5701 | -9/Mines | Destroyed by G-47 Trooper with Particle Gun Last Messages --------------- 05609_ U-05 Engineer lays Concrete. 05611_ K-01 Serf collects debris. 05612_ U-05 Engineer builds a Wall. 05614_ K-01 Serf collects debris. 05616_ U-05 Engineer builds a Wall. 05617_ K-01 Serf collects debris. 05620_ U-05 Engineer lays Concrete. 05621_ K-01 Serf collects debris. 05621_ U-05 Engineer lays Concrete. 05622_ U-05 Engineer builds a Wall. 05624_ K-01 Serf collects debris. 05626_ U-05 Engineer lays Concrete. 05627_ K-01 Serf collects debris. 05628_ U-05 Engineer lays Concrete. 05631_ K-01 Serf collects debris. 05632_ U-05 Engineer lays Concrete. 05636_ The unstable cave ceiling collapses. 05636_ K-01 Serf collects debris. 05636_ U-05 Engineer builds a Wall. 05680_ 46UN> Z0RBAO KLD9&BK#BDHLHT G>M52VUMC= Map ----- +----------------------------------------------------+ | ??????????????????????????????????????????????? | | ??????????????????????????????????????????????? | | ??????????????????????????????????????????????? | | ??????????????????????????????????????????????? | | ??????????????????????????????????????????????? | | ??????????????????????????????????????????????? | | ??????????????????????????????????????????????? | | ??????????????????????????????????????????????? | | ??????????????????????????????????????????????? | | ??????????????????????????????????????????????? | | ??????????????????????????????????????????????? | | ??????????????????????????????????????????????? | | ??????????????????????????????????????????????? | | ??????????????????????????????????????????????? | | ??????????????????????????????????????????????? | | ??????????????????????????????????????????????? | | ??????????????????????????????????????????????? | | ??????????????????????????????????????????????? | | ??????????????????????????????????????????????? | | ??????????????????????????????????????????????? | | ?????????????????????????######???????????????? | | ????????????????????????########??????????????? | | ?????????????????######### ######???????????? | | ?????????????????######## #### ??????? | | ????#######??????## ??????? | | ?############????## @ g ??????? | | ###### ## ###????## ### g ##???????? | | ### ## ######## ### #### #####???????? | | ## # ######## #### ##### ####????????? | | ## ### #########????????????????? | | ?## # ## ##?#####?????????????????? | | ??##### # # # # ##???????????????????????? | | ?????#### ## # # ##???????????????????????? | | ???????## # # ##???????????????????????? | | ???????## # # ##???????????????????????? | | ??????#### ### ##???????????????????????? | | ?????#### ##???????????????????????? | | ?????### ##???????????????????????? | | ?????## ## "######???????????????????????? | | ?????## " #############???????????????????????? | | ?????## ##########???????????????????????????? | | ????### ###??????????????????????????????????? | | ????### ##???????????????????????????????????? | | ????## ##???????????????????????????????????? | | ????## ##???????????????????????????????????? | | ????## ###???????????????????????????????????? | | ????#######???????????????????????????????????? | | ????######????????????????????????????????????? | | ??????????????????????????????????????????????? | | ??????????????????????????????????????????????? | +----------------------------------------------------+ Best States ------------- Heat Dissipation 28 Energy Generation 14 Energy Capacity 275 Matter Stores 300 Matter Capacity 300 Sight Range 16 Robot Scan Range 14 Terrain Scan Density 10 Resistance: KI 20 Resistance: TH 20 Resistance: EX 20 Resistance: EM 20 Resistance: I 20 Resistance: S 20 Resistance: P 20 Evasion (%) 40 Recoil Reduction 4 Offensive Hacking 10 Item Schematics ----------------- Seismic Detector | -9/Materials | Scanalyzed Lgt. Assault Rifle | -9/Materials | Scanalyzed Assault Rifle | -9/Materials | Scanalyzed EM Pulse Gun | -9/Materials | Scanalyzed Grenade Launcher | -9/Materials | Scanalyzed Lgt. Ion Engine | -9/Materials | Scanalyzed Mining Laser | -9/Materials | Scanalyzed Rocket Launcher | -9/Materials | Scanalyzed Sensor Array | -9/Materials | Scanalyzed Robot Schematics ------------------ None Fabricated ------------ Nothing Alien Tech Used ----------------- None Achievements -------------- Exterminator Killing Spree Quick And Dirty Challenges ------------ None Game ------ Seed DiametricBiometalStabilizer Manual? 0 Play Time 00:45:19 Cumulative 15.8 hours Start 2024.11.20 @ 17:56:52 End 2024.11.20 @ 21:30:53 Sessions 3 Manual Loads 0 Difficulty Adventurer Special Mode None Game No. 14 Rogue 10 Adventurer 4 Explorer 0 Win Type - Total 0 Types 0/0/0/0/0/0/0/0/0 Lore% 12 Gallery% 19 Achievement% 18 Wizard Run 0 Options --------- Layout 0 ASCII 0 Keyboard 0 Movement Numpad Keybinds 0 Fullscreen 2 Font 16/SmallcapsGlow Map View 88x55 Zoom Use 0% Tactical HUD 1 Map Filters NONE Filters NONE Steam 1 RUN: c672284e-2739-4fd5-ac67-4ce8eb402cb6